lending/lending_fUSD_20250509
["ID","MTS","AMOUNT","RATE_DAILY","PERIOD"]
[360336973,1746750638251,-235.26398558,0.00019842,2]
[360336974,1746750638279,-698.85082838,0.00019842,2]
[360336975,1746750638289,-159.03471132,0.00019842,2]
[360336976,1746750638298,-159.41259653,0.00019846,2]
[360336977,1746750638307,-832.51410367,0.00019853,2]
[360336978,1746750638334,-101.60071029,0.00019853,2]
[360336979,1746750638343,-159.41259653,0.00019861,2]
[360336980,1746750638355,-1000.0,0.00019863,2]
[360336981,1746750638364,-500.0,0.00019863,2]
[360336982,1746750638375,-934.11481396,0.00019864,2]
[360336983,1746750638384,-359.23530635,0.00019865,2]
[360336984,1746750638393,-500.0,0.00019866,2]
[360336985,1746750638403,-500.0,0.00019873,2]
[360336986,1746750638412,-94.86854033,0.00019873,2]
[360336987,1746750638429,-354.52000605,0.00019873,2]
[360336988,1746750638439,-500.0,0.00019873,2]
[360336989,1746750638448,-400.0,0.00019873,2]
[360336990,1746750638457,-505.35,0.00019873,2]
[360336991,1746750638467,-400.0,0.00019873,2]
[360336992,1746750638476,-461.98,0.00019873,2]
[360336993,1746750638486,-505.79,0.00019873,2]
[360336994,1746750638495,-998.88,0.00019873,2]
[360336996,1746750638504,-400.0,0.00019873,2]
[360336997,1746750638513,-866.84,0.00019873,2]
[360336998,1746750638523,-1070.99,0.00019873,2]
[360336999,1746750638532,-400.0,0.00019873,2]
[360337000,1746750638541,-400.0,0.00019873,2]
[360337001,1746750638551,-1076.75,0.00019873,2]
[360337002,1746750638560,-794.95,0.00019873,2]
[360337003,1746750638570,-403.23,0.00019873,2]
[360337004,1746750638579,-1245.37,0.00019873,2]
[360337005,1746750638588,-400.0,0.00019873,2]
[360337006,1746750638598,-835.75,0.00019873,2]
[360337007,1746750638607,-400.0,0.00019873,2]
[360337008,1746750638617,-712.38,0.00019873,2]
[360337009,1746750638627,-4642.92,0.00019873,2]
[360337010,1746750638636,-547.55537603,0.00019873,2]
[360337011,1746750638645,-400.0,0.00019873,2]
[360337012,1746750638654,-843.54,0.00019873,2]
[360337013,1746750638664,-400.0,0.00019873,2]
[360337014,1746750638673,-400.0,0.00019873,2]
[360337015,1746750638682,-400.0,0.00019873,2]
[360337016,1746750638691,-534.92565767,0.00019873,2]
[360337017,1746750638700,-400.0,0.00019873,2]
[360337018,1746750638710,-1740.0,0.00019873,2]
[360337019,1746750638720,-400.0,0.00019873,2]
[360337020,1746750638729,-726.99,0.00019873,2]
[360337021,1746750638738,-400.0,0.00019873,2]
[360337022,1746750638747,-528.54,0.00019873,2]
[360337023,1746750638757,-400.0,0.00019873,2]
[360337024,1746750638766,-793.64,0.00019873,2]
[360337025,1746750638775,-400.0,0.00019873,2]
[360337026,1746750638784,-706.82,0.00019873,2]
[360337027,1746750638794,-1635.47,0.00019873,2]
[360337028,1746750638803,-400.0,0.00019873,2]
[360337029,1746750638812,-400.0,0.00019873,2]
[360337030,1746750638826,-400.0,0.00019873,2]
[360337031,1746750638836,-400.0,0.00019873,2]
[360337032,1746750638846,-17915.945892,0.00019873,2]
[360337033,1746750638856,-400.0,0.00019873,2]
[360337034,1746750638866,-1130.15,0.00019873,2]
[360337035,1746750638877,-1085.05,0.00019873,2]
[360337036,1746750638886,-400.0,0.00019873,2]
[360337037,1746750638896,-400.0,0.00019873,2]
[360337038,1746750638906,-400.0,0.00019873,2]
[360337039,1746750638916,-400.0,0.00019873,2]
[360337040,1746750638925,-400.0,0.00019873,2]
[360337041,1746750638934,-400.0,0.00019873,2]
[360337042,1746750638944,-512.58,0.00019873,2]
[360337043,1746750638954,-400.0,0.00019873,2]
[360337044,1746750638963,-400.0,0.00019873,2]
[360337045,1746750638972,-400.0,0.00019874,2]
[360337046,1746750638982,-400.0,0.00019874,2]
[360337047,1746750638991,-400.0,0.00019874,2]
[360337048,1746750639003,-400.0,0.00019874,2]
[360337049,1746750639013,-400.0,0.00019874,2]
[360337050,1746750639022,-178.98464446,0.00019874,2]
[360337051,1746750639031,-238.59040335,0.00019874,2]
[360337052,1746750639041,-400.0,0.00019874,2]
[360337053,1746750639051,-400.0,0.00019874,2]
[360337054,1746750639060,-400.0,0.00019874,2]
[360337055,1746750639071,-400.0,0.00019874,2]
[360337056,1746750639083,-400.0,0.00019874,2]
[360337057,1746750639093,-500.0,0.00019874,2]
[360337058,1746750639102,-412.13026706,0.00019874,2]
[360337059,1746750639112,-311.73598685,0.00019874,2]
[360337060,1746750639123,-400.0,0.00019874,2]
[360337061,1746750639132,-155.880471,0.00019874,2]
[360337062,1746750639142,-1420.400603,0.00019874,2]
[360337063,1746750639152,-1515.9,0.00019874,2]
[360337064,1746750639161,-8442.391263,0.00019874,2]
[360337065,1746750639171,-399.7998,0.00019874,2]
[360337066,1746750639180,-400.0,0.00019874,2]
[360337067,1746750639189,-960.14,0.00019874,2]
[360337068,1746750639199,-3479.27,0.00019874,2]
[360337069,1746750639209,-5237.72,0.00019874,2]
[360337070,1746750639219,-400.0,0.00019874,2]
[360337071,1746750639228,-536.53120084,0.00019874,2]
[360337072,1746750639237,-500.0,0.00019874,2]
[360337073,1746750639247,-536.53120084,0.00019874,2]
[360337074,1746750639256,-500.0,0.00019874,2]
[360337075,1746750639265,-500.0,0.00019874,2]
[360337076,1746750639274,-536.53120084,0.00019874,2]
[360337077,1746750639283,-500.0,0.00019874,2]
[360337078,1746750639292,-536.53120084,0.00019874,2]
[360337079,1746750639302,-500.0,0.00019874,2]
[360337080,1746750639311,-536.53120084,0.00019874,2]
[360337081,1746750639321,-463.62604595,0.00019874,2]
[360337082,1746750639331,-536.53120084,0.00019874,2]
[360337083,1746750639340,-500.0,0.00019874,2]
[360337084,1746750639349,-536.53120084,0.00019874,2]
[360337085,1746750639358,-500.0,0.00019874,2]
[360337086,1746750639368,-536.53120084,0.00019874,2]
[360337087,1746750639378,-536.53120084,0.00019874,2]
[360337088,1746750639387,-329.9848788,0.00019874,2]
[360337089,1746750639396,-536.53120084,0.00019874,2]
[360337090,1746750639406,-536.53120084,0.00019874,2]
[360337091,1746750639415,-536.53120084,0.00019874,2]
[360337092,1746750639424,-536.53120084,0.00019874,2]
[360337093,1746750639433,-536.53120084,0.00019874,2]
[360337094,1746750639442,-536.53120084,0.00019874,2]
[360337095,1746750639452,-536.53120084,0.00019874,2]
[360337096,1746750639461,-500.0,0.00019874,2]
[360337097,1746750639471,-536.53120084,0.00019874,2]
[360337098,1746750639480,-536.53120084,0.00019874,2]
[360337099,1746750639490,-180.95818657,0.00019874,2]
[360337100,1746750639499,-536.53120084,0.00019874,2]
[360337101,1746750639509,-536.53120084,0.00019874,2]
[360337102,1746750639518,-536.53120084,0.00019874,2]
[360337103,1746750639527,-536.53120084,0.00019874,2]
[360337104,1746750639537,-536.53120084,0.00019874,2]
[360337105,1746750639546,-536.53120084,0.00019874,2]
[360337106,1746750639556,-536.53120084,0.00019874,2]
[360337107,1746750639565,-536.53120084,0.00019874,2]
[360337108,1746750639574,-536.53120084,0.00019874,2]
[360337109,1746750639584,-536.53120084,0.00019874,2]
[360337110,1746750639593,-536.53120084,0.00019874,2]
[360337111,1746750639603,-536.53120084,0.00019874,2]
[360337112,1746750639612,-536.53120084,0.00019874,2]
[360337113,1746750639623,-536.53120084,0.00019874,2]
[360337114,1746750639632,-536.53120084,0.00019874,2]
[360337115,1746750639641,-536.53120084,0.00019874,2]
[360337116,1746750639650,-536.53120084,0.00019874,2]
[360337117,1746750639659,-536.53120084,0.00019874,2]
[360337118,1746750639668,-536.53120084,0.00019874,2]
[360337119,1746750639678,-536.53120084,0.00019874,2]
[360337120,1746750639688,-536.53120084,0.00019874,2]
[360337121,1746750639697,-536.53120084,0.00019874,2]
[360337122,1746750639706,-536.53120084,0.00019874,2]
[360337123,1746750639717,-536.53120084,0.00019874,2]
[360337124,1746750639726,-536.53120084,0.00019874,2]
[360337125,1746750639736,-536.53120084,0.00019874,2]
[360337126,1746750639745,-536.53120084,0.00019874,2]
[360337127,1746750639754,-536.53120084,0.00019874,2]
[360337128,1746750639764,-536.53120084,0.00019874,2]
[360337129,1746750639773,-536.53120084,0.00019874,2]
[360337130,1746750639782,-536.53120084,0.00019874,2]
[360337131,1746750639791,-536.53120084,0.00019874,2]
[360337132,1746750639800,-536.53120084,0.00019874,2]
[360337133,1746750639810,-536.53120084,0.00019874,2]
[360337134,1746750639819,-536.53120084,0.00019874,2]
[360337135,1746750639828,-536.53120084,0.00019874,2]
[360337136,1746750639838,-536.53120084,0.00019874,2]
[360337137,1746750639847,-536.53120084,0.00019874,2]
[360337138,1746750639856,-536.53120084,0.00019874,2]
[360337139,1746750639866,-536.53120084,0.00019874,2]
[360337140,1746750639876,-1276.67,0.00019874,2]
[360337141,1746750639885,-156.696154,0.00019874,2]
[360337142,1746750639895,-400.0,0.00019874,2]
[360337143,1746750639905,-202.55737241,0.00019874,2]
[360337144,1746750639915,-639.04,0.00019874,2]
[360337145,1746750639925,-949.32,0.00019874,2]
[360337146,1746750639935,-815.06,0.00019874,2]
[360337147,1746750639944,-1407.76496613,0.00019874,2]
[360337148,1746750639959,-46597.62079608,0.00019874,2]
[360337152,1746750640770,-462.41,0.00019873,2]
[360337153,1746750640780,-400.0,0.00019873,2]
[360337154,1746750640789,-20806.59,0.00019874,2]
[360337155,1746750641186,-5304.67066692,0.00019874,2]
[360337156,1746750641198,-14832.54011301,0.00019874,2]
[360337157,1746750641212,-7637.487055,0.00019874,2]
[360337158,1746750641223,-663.88337826,0.00019874,2]
[360337159,1746750641371,-760.35363332,0.00019874,2]
[360337160,1746750641391,-1914.76341457,0.00019874,2]
[360337161,1746750641483,-21027.60597671,0.00019874,2]
[360337162,1746750641493,-400.0,0.00019874,2]
[360337163,1746750641502,-400.0,0.00019874,2]
[360337164,1746750641511,-526.7760881,0.00019874,2]
[360337165,1746750641520,-162.62511621,0.00019874,2]
[360337166,1746750641530,-526.7760881,0.00019874,2]
[360337167,1746750641539,-526.7760881,0.00019874,2]
[360337168,1746750641548,-526.7760881,0.00019874,2]
[360337169,1746750641558,-526.7760881,0.00019874,2]
[360337170,1746750641567,-526.7760881,0.00019874,2]
[360337171,1746750641576,-526.7760881,0.00019874,2]
[360337172,1746750641586,-526.7760881,0.00019874,2]
[360337173,1746750641595,-526.7760881,0.00019874,2]
[360337174,1746750641604,-526.7760881,0.00019874,2]
[360337175,1746750641613,-526.7760881,0.00019874,2]
[360337176,1746750641624,-526.7760881,0.00019874,2]
[360337177,1746750641634,-526.7760881,0.00019874,2]
[360337178,1746750641643,-526.7760881,0.00019874,2]
[360337179,1746750641653,-526.7760881,0.00019874,2]
[360337180,1746750641662,-526.7760881,0.00019874,2]
[360337181,1746750641671,-526.7760881,0.00019874,2]
[360337182,1746750641680,-526.7760881,0.00019874,2]
[360337183,1746750641690,-526.7760881,0.00019874,2]
[360337184,1746750641699,-526.7760881,0.00019874,2]
[360337185,1746750641708,-526.7760881,0.00019874,2]
[360337186,1746750641717,-526.7760881,0.00019874,2]
[360337187,1746750641727,-526.7760881,0.00019874,2]
[360337188,1746750641737,-526.7760881,0.00019874,2]
[360337189,1746750641747,-526.7760881,0.00019874,2]
[360337190,1746750641755,-526.7760881,0.00019874,2]
[360337191,1746750641764,-526.7760881,0.00019874,2]
[360337192,1746750641773,-526.7760881,0.00019874,2]
[360337193,1746750641783,-1757.03,0.00019874,2]
[360337194,1746750641791,-547.7793387,0.00019874,2]
[360337195,1746750641801,-876.33,0.00019874,2]
[360337196,1746750641810,-700.9,0.00019874,2]
[360337197,1746750641821,-2174.89,0.00019874,2]
[360337198,1746750641833,-2980.91,0.00019874,2]
[360337199,1746750641846,-1113.58,0.00019874,2]
[360337200,1746750641858,-400.0,0.00019874,2]
[360337201,1746750641870,-526.77608811,0.00019874,2]
[360337202,1746750641882,-526.77608811,0.00019874,2]
[360337203,1746750641893,-526.77608811,0.00019874,2]
[360337204,1746750641904,-526.77608811,0.00019874,2]
[360337205,1746750641916,-3586.89,0.00019874,2]
[360337206,1746750641928,-733.19,0.00019874,2]
[360337207,1746750641940,-446.6,0.00019874,2]
[360337208,1746750641952,-1821.96,0.00019874,2]
[360337209,1746750641964,-750.28,0.00019874,2]
[360337210,1746750641977,-1448.8,0.00019874,2]
[360337211,1746750641989,-530.49,0.00019874,2]
[360337212,1746750642002,-2305.16,0.00019874,2]
[360337213,1746750642014,-400.0,0.00019874,2]
[360337214,1746750642025,-400.0,0.00019874,2]
[360337215,1746750642036,-3364.93,0.00019874,2]
[360337216,1746750642047,-1119.65,0.00019874,2]
[360337217,1746750642060,-3028.03,0.00019874,2]
[360337218,1746750642073,-923.8,0.00019874,2]
[360337219,1746750642085,-2867.94,0.00019874,2]
[360337220,1746750642098,-746.26,0.00019874,2]
[360337221,1746750642110,-2885.48,0.00019874,2]
[360337222,1746750642122,-1536.25,0.00019874,2]
[360337223,1746750642134,-400.0,0.00019874,2]
[360337224,1746750642146,-878.65,0.00019874,2]
[360337225,1746750642158,-1391.54,0.00019874,2]
[360337226,1746750642170,-2407.58,0.00019874,2]
[360337227,1746750642182,-400.0,0.00019874,2]
[360337228,1746750642195,-400.0,0.00019874,2]
[360337229,1746750642207,-4311.8,0.00019874,2]
[360337230,1746750642219,-505.35,0.00019874,2]
[360337231,1746750642230,-505.35,0.00019874,2]
[360337232,1746750642242,-411.48,0.00019874,2]
[360337233,1746750642254,-1515.46,0.00019874,2]
[360337234,1746750642264,-1839.11,0.00019874,2]
[360337235,1746750642276,-400.0,0.00019874,2]
[360337236,1746750642288,-400.0,0.00019874,2]
[360337237,1746750642300,-461.98,0.00019874,2]
[360337238,1746750642312,-461.98,0.00019874,2]
[360337239,1746750642323,-400.0,0.00019874,2]
[360337240,1746750642334,-505.79,0.00019874,2]
[360337241,1746750642345,-505.79,0.00019874,2]
[360337242,1746750642356,-2504.12,0.00019874,2]
[360337243,1746750642366,-1738.03,0.00019874,2]
[360337244,1746750642377,-998.88,0.00019874,2]
[360337245,1746750642388,-400.0,0.00019874,2]
[360337246,1746750642399,-998.88,0.00019874,2]
[360337247,1746750642413,-906.43,0.00019874,2]
[360337248,1746750642426,-400.0,0.00019874,2]
[360337249,1746750642435,-400.0,0.00019874,2]
[360337250,1746750642445,-2460.36,0.00019874,2]
[360337251,1746750642455,-674.6,0.00019874,2]
[360337252,1746750642465,-518.25,0.00019874,2]
[360337253,1746750642476,-866.84,0.00019874,2]
[360337254,1746750642487,-866.84,0.00019874,2]
[360337255,1746750642500,-1070.99,0.00019874,2]
[360337256,1746750642511,-1070.99,0.00019874,2]
[360337257,1746750642521,-400.0,0.00019874,2]
[360337258,1746750642531,-5397.15,0.00019874,2]
[360337259,1746750642542,-400.0,0.00019874,2]
[360337260,1746750642553,-400.0,0.00019874,2]
[360337261,1746750642565,-879.42,0.00019874,2]
[360337262,1746750642575,-282.94,0.00019874,2]
[360337263,1746750642587,-1494.01,0.00019874,2]
[360337264,1746750642598,-1292.21,0.00019874,2]
[360337265,1746750642610,-1076.75,0.00019874,2]
[360337266,1746750642627,-1076.75,0.00019874,2]
[360337267,1746750642639,-3712.6,0.00019874,2]
[360337268,1746750642650,-794.95,0.00019874,2]
[360337269,1746750642661,-794.95,0.00019874,2]
[360337270,1746750642672,-4444.24,0.00019874,2]
[360337271,1746750642683,-403.23,0.00019874,2]
[360337272,1746750642694,-403.23,0.00019874,2]
[360337273,1746750642705,-3554.37,0.00019874,2]
[360337274,1746750642716,-903.21,0.00019874,2]
[360337275,1746750642727,-3265.96,0.00019874,2]
[360337276,1746750642738,-1245.37,0.00019874,2]
[360337277,1746750642749,-1245.37,0.00019874,2]
[360337278,1746750642761,-1334.15,0.00019874,2]
[360337279,1746750642772,-919.94,0.00019874,2]
[360337280,1746750642783,-835.77,0.00019874,2]
[360337281,1746750642794,-400.0,0.00019874,2]
[360337282,1746750642806,-400.0,0.00019874,2]
[360337283,1746750642818,-835.75,0.00019874,2]
[360337284,1746750642829,-835.75,0.00019874,2]
[360337285,1746750642840,-730.43,0.00019874,2]
[360337286,1746750642851,-2448.16,0.00019874,2]
[360337287,1746750642862,-400.0,0.00019874,2]
[360337289,1746750642874,-400.0,0.00019874,2]
[360337290,1746750642886,-3370.16,0.00019874,2]
[360337291,1746750642897,-712.38,0.00019874,2]
[360337292,1746750642908,-712.38,0.00019874,2]
[360337293,1746750642919,-4642.92,0.00019874,2]
[360337296,1746750642930,-4642.92,0.00019874,2]
[360337299,1746750642941,-5579.46,0.00019874,2]
[360337300,1746750642952,-1863.73,0.00019874,2]
[360337301,1746750642963,-213.2975765,0.00019874,2]
[360337302,1746750642974,-1177.59,0.00019874,2]
[360337303,1746750642985,-843.54,0.00019874,2]
[360337304,1746750642996,-843.54,0.00019874,2]
[360337305,1746750643011,-400.0,0.00019874,2]
[360337306,1746750643023,-400.0,0.00019874,2]
[360337307,1746750643033,-53933.84,0.00019874,2]
[360337308,1746750643047,-400.0,0.00019874,2]
[360337309,1746750643058,-520.79043219,0.00019874,2]
[360337310,1746750643069,-400.0,0.00019874,2]
[360337311,1746750643082,-400.0,0.00019874,2]
[360337312,1746750643093,-2011.26,0.00019874,2]
[360337313,1746750643105,-400.0,0.00019874,2]
[360337314,1746750643117,-1740.0,0.00019874,2]
[360337315,1746750643128,-400.0,0.00019874,2]
[360337316,1746750643138,-1740.0,0.00019874,2]
[360337317,1746750643150,-2537.21,0.00019874,2]
[360337318,1746750643161,-400.0,0.00019874,2]
[360337320,1746750643173,-400.0,0.00019874,2]
[360337321,1746750643184,-588.9,0.00019874,2]
[360337322,1746750643195,-726.99,0.00019874,2]
[360337323,1746750643206,-665.71142505,0.00019874,2]
[360337324,1746750643223,-61.27857495,0.00019874,2]
[360337325,1746750643237,-400.0,0.00019874,2]
[360337326,1746750643248,-283.46530832,0.00019874,2]
[360337327,1746750643262,-116.53469168,0.00019874,2]
[360337328,1746750643273,-4349.17,0.00019874,2]
[360337329,1746750643284,-528.54,0.00019874,2]
[360337330,1746750643295,-282.33767438,0.00019874,2]
[360337331,1746750643306,-528.54,0.00019874,2]
[360337332,1746750643318,-2607.09,0.00019874,2]
[360337333,1746750643328,-1103.5,0.00019874,2]
[360337334,1746750643340,-793.64,0.00019874,2]
[360337335,1746750643351,-793.64,0.00019874,2]
[360337336,1746750643363,-589.34,0.00019874,2]
[360337337,1746750643375,-449.47731783,0.00019874,2]
[360337338,1746750643386,-706.82,0.00019874,2]
[360337339,1746750643397,-706.82,0.00019874,2]
[360337340,1746750643408,-1635.47,0.00019874,2]
[360337341,1746750643419,-1635.47,0.00019874,2]
[360337342,1746750643430,-400.0,0.00019874,2]
[360337343,1746750643441,-400.0,0.00019874,2]
[360337344,1746750643452,-400.0,0.00019874,2]
[360337345,1746750643463,-400.0,0.00019874,2]
[360337346,1746750643474,-494.05086639,0.00019874,2]
[360337348,1746750645363,-20372.23913361,0.00019874,2]
[360337349,1746750645374,-400.0,0.00019874,2]
[360337350,1746750645385,-400.0,0.00019874,2]
[360337351,1746750645395,-537.84,0.00019874,2]
[360337352,1746750645404,-400.0,0.00019874,2]
[360337353,1746750645414,-400.0,0.00019874,2]
[360337354,1746750645423,-1045.68769817,0.00019874,2]
[360337355,1746750645479,-851.3432074,0.00019874,2]
[360337356,1746750645504,-469.77692667,0.00019874,2]
[360337357,1746750645516,-1817.03818632,0.00019874,2]
[360337358,1746750646362,-5912.0,0.00019874,2]
[360337362,1746750646541,-6913.08302149,0.00019874,2]
[360337363,1746750646586,-279.25095003,0.00019874,2]
[360337364,1746750646610,-627.76590192,0.00019874,2]
[360337365,1746750646622,-400.0,0.00019874,2]
[360337366,1746750646632,-1130.15,0.00019874,2]
[360337367,1746750646641,-180.4829207,0.00019874,2]
[360337368,1746750646651,-1085.05,0.00019874,2]
[360337369,1746750646662,-1275.07,0.00019874,2]
[360337370,1746750646672,-99.3558777,0.00019874,2]
[360337371,1746750646684,-1030.7941223,0.00019874,2]
[360337372,1746750646694,-1085.05,0.00019874,2]
[360337373,1746750646705,-189.37899796,0.00019874,2]
[360337374,1746750646716,-400.0,0.00019874,2]
[360337375,1746750646725,-400.0,0.00019874,2]
[360337376,1746750646735,-400.0,0.00019874,2]
[360337377,1746750646744,-400.0,0.00019874,2]
[360337378,1746750646754,-400.0,0.00019874,2]
[360337379,1746750646764,-400.0,0.00019874,2]
[360337380,1746750646774,-18457.87172945,0.00019874,2]
[360337381,1746750646862,-5174.66322734,0.00019874,2]
[360337382,1746750646874,-1750.30504321,0.00019874,2]
[360337383,1746750646884,-400.0,0.00019874,2]
[360337384,1746750646894,-292.56709995,0.00019874,2]
[360337385,1746750646903,-400.0,0.00019874,2]
[360337386,1746750646914,-400.0,0.00019874,2]
[360337387,1746750646923,-512.58,0.00019874,2]
[360337388,1746750646933,-931.52625486,0.00019874,2]
[360337389,1746750646945,-573.47374514,0.00019874,2]
[360337390,1746750646955,-400.0,0.00019874,2]
[360337391,1746750646966,-512.58,0.00019874,2]
[360337392,1746750646975,-462.41,0.00019874,2]
[360337393,1746750646985,-400.0,0.00019874,2]
[360337394,1746750646994,-462.41,0.00019874,2]
[360337395,1746750647007,-400.0,0.00019874,2]
[360337396,1746750647017,-400.0,0.00019874,2]
[360337397,1746750647026,-1662.98,0.00019874,2]
[360337398,1746750647036,-206.08886207,0.00019875,2]
[360337399,1746750647048,-383.646059,0.00019875,2]
[360337400,1746750647058,-400.0,0.00019875,2]
[360337401,1746750647068,-400.0,0.00019875,2]
[360337402,1746750647080,-400.0,0.00019875,2]
[360337403,1746750647090,-400.0,0.00019875,2]
[360337404,1746750647100,-400.0,0.00019875,2]
[360337405,1746750647110,-400.0,0.00019875,2]
[360337406,1746750647121,-400.0,0.00019875,2]
[360337407,1746750647131,-400.0,0.00019875,2]
[360337408,1746750647141,-400.0,0.00019875,2]
[360337409,1746750647151,-400.0,0.00019875,2]
[360337410,1746750647161,-400.0,0.00019875,2]
[360337411,1746750647171,-400.0,0.00019875,2]
[360337412,1746750647181,-400.27,0.00019875,2]
[360337413,1746750647190,-400.0,0.00019875,2]
[360337414,1746750647273,-400.0,0.00019875,2]
[360337415,1746750647283,-400.0,0.00019875,2]
[360337416,1746750647292,-400.0,0.00019875,2]
[360337417,1746750647301,-400.0,0.00019875,2]
[360337418,1746750647310,-488.13,0.00019875,2]
[360337419,1746750647319,-400.0,0.00019875,2]
[360337420,1746750647328,-400.0,0.00019875,2]
[360337421,1746750647337,-400.0,0.00019875,2]
[360337422,1746750647346,-400.0,0.00019875,2]
[360337423,1746750647355,-400.0,0.00019875,2]
[360337424,1746750647365,-400.0,0.00019875,2]
[360337425,1746750647374,-561.71721463,0.00019875,2]
[360337426,1746750647385,-400.0,0.00019875,2]
[360337427,1746750647395,-400.0,0.00019875,2]
[360337428,1746750647404,-400.0,0.00019875,2]
[360337429,1746750647413,-589.34,0.00019875,2]
[360337430,1746750647422,-400.0,0.00019875,2]
[360337431,1746750647431,-400.0,0.00019875,2]
[360337432,1746750647440,-400.0,0.00019875,2]
[360337433,1746750647449,-400.0,0.00019875,2]
[360337434,1746750647459,-607.6,0.00019875,2]
[360337435,1746750647469,-400.0,0.00019875,2]
[360337436,1746750647479,-400.0,0.00019875,2]
[360337437,1746750647490,-400.0,0.00019875,2]
[360337438,1746750647501,-400.0,0.00019875,2]
[360337439,1746750647512,-528.94320672,0.00019875,2]
[360337440,1746750647524,-400.0,0.00019875,2]
[360337441,1746750647536,-400.0,0.00019875,2]
[360337442,1746750647547,-400.0,0.00019875,2]
[360337443,1746750647559,-400.0,0.00019875,2]
[360337444,1746750647568,-400.0,0.00019875,2]
[360337445,1746750647577,-400.0,0.00019875,2]
[360337446,1746750647586,-473.16,0.00019875,2]
[360337447,1746750647595,-400.0,0.00019875,2]
[360337448,1746750647604,-400.0,0.00019875,2]
[360337449,1746750647614,-400.0,0.00019875,2]
[360337450,1746750647623,-567.34,0.00019875,2]
[360337451,1746750647633,-400.0,0.00019875,2]
[360337452,1746750647642,-400.0,0.00019875,2]
[360337453,1746750647651,-197.74289241,0.00019875,2]
[360337454,1746750647660,-158.73015691,0.00019875,2]
[360337455,1746750647670,-286.67,0.00019875,2]
[360337456,1746750647679,-400.0,0.00019875,2]
[360337457,1746750647688,-400.0,0.00019875,2]
[360337458,1746750647697,-400.0,0.00019875,2]
[360337459,1746750647707,-400.0,0.00019875,2]
[360337460,1746750647716,-400.0,0.00019875,2]
[360337461,1746750647726,-400.0,0.00019875,2]
[360337462,1746750647735,-530.17347906,0.00019875,2]
[360337463,1746750647745,-400.0,0.00019875,2]
[360337464,1746750647754,-463.01,0.00019875,2]
[360337465,1746750647764,-400.0,0.00019875,2]
[360337466,1746750647774,-400.0,0.00019875,2]
[360337467,1746750647783,-400.0,0.00019875,2]
[360337468,1746750647793,-400.0,0.00019875,2]
[360337469,1746750647803,-400.0,0.00019875,2]
[360337470,1746750647812,-400.0,0.00019875,2]
[360337471,1746750647822,-400.0,0.00019875,2]
[360337472,1746750647832,-328.46361368,0.00019875,2]
[360337473,1746750647843,-400.0,0.00019875,2]
[360337474,1746750647853,-400.0,0.00019875,2]
[360337475,1746750647863,-400.0,0.00019875,2]
[360337476,1746750647874,-400.0,0.00019875,2]
[360337477,1746750647883,-515.66279401,0.00019875,2]
[360337478,1746750647893,-400.0,0.00019875,2]
[360337479,1746750647903,-400.0,0.00019875,2]
[360337480,1746750647912,-525.07,0.00019875,2]
[360337481,1746750647922,-400.0,0.00019875,2]
[360337482,1746750647931,-400.0,0.00019875,2]
[360337483,1746750647940,-400.0,0.00019875,2]
[360337484,1746750647949,-400.0,0.00019875,2]
[360337485,1746750647959,-400.0,0.00019875,2]
[360337486,1746750647969,-400.0,0.00019875,2]